Cogmind - Beta 14 @@@ ROGUE MODE // 2024.11.27 @ 14:13:03 Player: MarKhan Result: Destroyed by G-67 Veteran with Plasma Rifle Performance ------------- Evolutions (5) 2500 Regions Visited (9) 1800 Robots Destroyed (0) 0 Value Destroyed (0) 0 Prototype IDs (0) 0 Alien Tech Used (0) 0 Bonus (1432) 1432 TOTAL SCORE: 5732 Bonus ------- Pacifist 1132 Registered with UFD 300 Cogmind --------- Core Integrity 0/1000 Matter 258/300 Energy 98/100 System Corruption 2% Temperature Cool (12) Movement Core (50) Location -5/Upper Caves Parts ------- > --- POWER (1) -------- (None) > --- PROPULSION (2) --- (None) > --- UTILITY (2) ------ (None) > --- WEAPON (12) ------ (None) > --- INVENTORY (5) ---- (None) Peak State ------------ None Favorites ----------- Power None Propulsion None Utility None Weapon None Build | -11 -10 -9 -9 -9 -9 -6 -5 -5 -5 ------- Run | Yrd Mat Mat Sto Rec Scr Fac Fac Upp Upp Slots Evolved 10 | . . 2 . . . 6 2 . . Power . | . . . . . . . . . . Propulsion . | . . . . . . . . . . Utility . | . . . . . . . . . . Weapon 10 | . . 2 . . . 6 2 . . Parts Attached . | . . . . . . . . . . Power . | . . . . . . . . . . Engine . | . . . . . . . . . . Core . | . . . . . . . . . . Reactor . | . . . . . . . . . . Propulsion . | . . . . . . . . . . Treads . | . . . . . . . . . . Leg . | . . . . . . . . . . Wheel . | . . . . . . . . . . Hover . | . . . . . . . . . . Flight . | . . . . . . . . . . Utility . | . . . . . . . . . . Device . | . . . . . . . . . . Storage . | . . . . . . . . . . Processor . | . . . . . . . . . . Hackware . | . . . . . . . . . . Protection . | . . . . . . . . . . Artifact . | . . . . . . . . . . Weapon . | . . . . . . . . . . Energy Gun . | . . . . . . . . . . Energy Cannon . | . . . . . . . . . . Ballistic Gun . | . . . . . . . . . . Ballistic Cannon . | . . . . . . . . . . Launcher . | . . . . . . . . . . Special Weapon . | . . . . . . . . . . Impact Weapon . | . . . . . . . . . . Slashing Weapon . | . . . . . . . . . . Piercing Weapon . | . . . . . . . . . . Special Melee Weapon . | . . . . . . . . . . Unidentified Prototypes . | . . . . . . . . . . Parts Lost . | . . . . . . . . . . Power . | . . . . . . . . . . Propulsion . | . . . . . . . . . . Utility . | . . . . . . . . . . Weapon . | . . . . . . . . . . Highest Loss Streak . | . . . . . . . . . . To Critical Strikes . | . . . . . . . . . . Average Slot Usage (%) . | . . . . . . . . . . Peak Build Rating . | . . . . . . . . . . Average Rating . | . . . . . . . . . . On Entrance . | . . . . . . . . . . Naked Turns 2278 | . 31 35 139 663 1020 44 109 106 131 Heaviest Build . | . . . . . . . . . . Greatest Support 3 | 3 3 3 3 3 3 3 3 3 3 Greatest Overweight (x) . | . . . . . . . . . . Average Overweight (x) . | . . . . . . . . . . Largest Inventory Capacity 5 | 5 5 5 5 5 5 5 5 5 5 Average Capacity 5 | 5 5 5 5 5 5 5 5 5 5 Most Carried . | . . . . . . . . . . Average Carried . | . . . . . . . . . . Final Capacity 5 | 5 5 5 5 5 5 5 5 5 5 Final Carried . | . . . . . . . . . . Class Distribution -------------------- 94% | Mutant 5% | Commander-Mutant Dominant Class ---------------- Mutant | -10/Materials Mutant | -9/Materials Commander-Mutant | -9/Storage Mutant | -9/Recycling Mutant | -9/Scraptown Mutant | -6/Factory Mutant | -5/Factory Mutant | -5/Upper Caves Mutant | -5/Upper Caves Resources | -11 -10 -9 -9 -9 -9 -6 -5 -5 -5 ----------- Run | Yrd Mat Mat Sto Rec Scr Fac Fac Upp Upp Matter Collected 149 | 149 . . . . . . . . . Remotely . | . . . . . . . . . . Salvage Created . | . . . . . . . . . . Parts . | . . . . . . . . . . Haulers Intercepted . | . . . . . . . . . . Recyclers Shooed . | . . . . . . . . . . Parts Field Recycled . | . . . . . . . . . . Retrieved Matter . | . . . . . . . . . . Parts Self-Destructed . | . . . . . . . . . . Prevented . | . . . . . . . . . . Kills | -11 -10 -9 -9 -9 -9 -6 -5 -5 -5 ------- Run | Yrd Mat Mat Sto Rec Scr Fac Fac Upp Upp Combat Hostiles Destroyed . | . . . . . . . . . . Classes Destroyed . | . . . . . . . . . . Best Kill Streak . | . . . . . . . . . . Combat Bots Only . | . . . . . . . . . . Max Kills in Single Turn . | . . . . . . . . . . Gunslinging . | . . . . . . . . . . Exploded . | . . . . . . . . . . Melee . | . . . . . . . . . . Uniques/NPCs Destroyed . | . . . . . . . . . . Combat | -11 -10 -9 -9 -9 -9 -6 -5 -5 -5 -------- Run | Yrd Mat Mat Sto Rec Scr Fac Fac Upp Upp Hostile Shots Fired 151 | . . 4 44 . . 2 25 . 76 Missed 61 | . . 2 16 . . 1 16 . 26 Damage Taken 1360 | . . 28 292 . . 18 156 . 866 Core 1360 | . . 28 292 . . 18 156 . 866 Absorbed by Shields . | . . . . . . . . . . Core Remaining (%) 79 | 100 100 . . . 20 97 . . . Volleys Fired . | . . . . . . . . . . Largest . | . . . . . . . . . . Hottest . | . . . . . . . . . . Shots Fired . | . . . . . . . . . . Gun . | . . . . . . . . . . Cannon . | . . . . . . . . . . Launcher . | . . . . . . . . . . Special . | . . . . . . . . . . Kinetic . | . . . . . . . . . . Thermal . | . . . . . . . . . . Explosive . | . . . . . . . . . . Electromagnetic . | . . . . . . . . . . Robot Hit Streak . | . . . . . . . . . . Robot Miss Streak . | . . . . . . . . . . Penetration Max . | . . . . . . . . . . Secondary Targets . | . . . . . . . . . . Shots Hit Robots . | . . . . . . . . . . Core Hits . | . . . . . . . . . . Critical Kills . | . . . . . . . . . . Critical Parts Destroyed . | . . . . . . . . . . Critical Strikes . | . . . . . . . . . . Melee Attacks . | . . . . . . . . . . Impact . | . . . . . . . . . . Slashing . | . . . . . . . . . . Piercing . | . . . . . . . . . . Sneak Attacks . | . . . . . . . . . . Combat Hostiles . | . . . . . . . . . . Follow-up Attacks . | . . . . . . . . . . Damage Inflicted 27 | . . . 12 . . . 15 . . Guns . | . . . . . . . . . . Cannons . | . . . . . . . . . . Explosions . | . . . . . . . . . . Melee . | . . . . . . . . . . Ramming 27 | . . . 12 . . . 15 . . Kinetic . | . . . . . . . . . . Thermal . | . . . . . . . . . . Explosive . | . . . . . . . . . . Electromagnetic . | . . . . . . . . . . Impact . | . . . . . . . . . . Slashing . | . . . . . . . . . . Piercing . | . . . . . . . . . . Highest Corruption 2 | . . . . . . . . . 2 Average Corruption 1 | . . . . . . . . . 1 Corruption Purged . | . . . . . . . . . . Corruption Blocked . | . . . . . . . . . . Overload Shots . | . . . . . . . . . . Overflow Damage . | . . . . . . . . . . Projectiles . | . . . . . . . . . . Explosions . | . . . . . . . . . . Melee . | . . . . . . . . . . Knockbacks . | . . . . . . . . . . Impact . | . . . . . . . . . . Kinetic . | . . . . . . . . . . Secondary . | . . . . . . . . . . Self-Inflicted Damage 13 | . . . 6 . . . 7 . . Shots . | . . . . . . . . . . Rammed 4 | . . . 2 . . . 2 . . Targets Rammed 4 | . . . 2 . . . 2 . . Kicked . | . . . . . . . . . . Crushed . | . . . . . . . . . . Highest Temperature . | . . . . . . . . . . Average Temperature . | . . . . . . . . . . Received Heat Transfer 156 | . . 18 18 . . 9 . . 111 Siege Activations . | . . . . . . . . . . Robots Corrupted . | . . . . . . . . . . Combat Hostiles . | . . . . . . . . . . Parts Fried . | . . . . . . . . . . Impact Corruptions . | . . . . . . . . . . Robots Melted . | . . . . . . . . . . Combat Hostiles . | . . . . . . . . . . Parts Melted . | . . . . . . . . . . Heat Transferred . | . . . . . . . . . . Parts Sabotaged . | . . . . . . . . . . Parts Stolen . | . . . . . . . . . . Parts Stripped . | . . . . . . . . . . Power Chain Reactions . | . . . . . . . . . . Alert | -11 -10 -9 -9 -9 -9 -6 -5 -5 -5 ------- Run | Yrd Mat Mat Sto Rec Scr Fac Fac Upp Upp Peak Influence 343 | . 31 28 247 343 . 15 82 . . Initial 88 | . . 13 11 88 . . 7 . . Average 157 | . 17 20 83 221 . 6 14 . . Maximum Alert Level 1 | . . . 1 1 . . . . . Low Security (%) 63 | 100 100 100 79 48 . 100 100 . . Level 1 36 | . . . 20 51 . . . . . Level 2 . | . . . . . . . . . . Level 3 . | . . . . . . . . . . Level 4 . | . . . . . . . . . . Level 5 . | . . . . . . . . . . High Security . | . . . . . . . . . . Max Security . | . . . . . . . . . . Squads Dispatched . | . . . . . . . . . . Investigation . | . . . . . . . . . . Extermination . | . . . . . . . . . . Reinforcement . | . . . . . . . . . . Assault . | . . . . . . . . . . Garrison . | . . . . . . . . . . Intercept . | . . . . . . . . . . Searches Triggered . | . . . . . . . . . . Construction Impeded . | . . . . . . . . . . Haulers Reinforced . | . . . . . . . . . . Active Scanning Responses . | . . . . . . . . . . Cargo Convoy Interrupts . | . . . . . . . . . . Stealth | -11 -10 -9 -9 -9 -9 -6 -5 -5 -5 --------- Run | Yrd Mat Mat Sto Rec Scr Fac Fac Upp Upp Distress Signals 4 | . . . 4 . . . . . . Communications Jammed . | . . . . . . . . . . Distress Signals . | . . . . . . . . . . Times Spotted 40 | . 1 1 10 . . 2 11 . 15 Peak Tracking Total 11 | . 1 1 7 . . 2 8 . 11 Tactical Retreats 6 | . . . 2 . . . 2 . 2 Traps | -11 -10 -9 -9 -9 -9 -6 -5 -5 -5 ------- Run | Yrd Mat Mat Sto Rec Scr Fac Fac Upp Upp Traps Triggered 2 | . . . 2 . . . . . . Indirectly . | . . . . . . . . . . Trap Hack Attempts . | . . . . . . . . . . Triggered . | . . . . . . . . . . Disarmed . | . . . . . . . . . . Reprogrammed . | . . . . . . . . . . Reused . | . . . . . . . . . . Traps Extracted . | . . . . . . . . . . Installed . | . . . . . . . . . . Triggered . | . . . . . . . . . . Machines | -11 -10 -9 -9 -9 -9 -6 -5 -5 -5 ---------- Run | Yrd Mat Mat Sto Rec Scr Fac Fac Upp Upp Machines Disabled . | . . . . . . . . . . Max in Single Turn . | . . . . . . . . . . Garrison Access 1 | . . . 1 . . . . . . Machines Repaired . | . . . . . . . . . . Machines Dismantled . | . . . . . . . . . . Machines Sabotaged . | . . . . . . . . . . Overloaded Fab Kills . | . . . . . . . . . . Hacking | -11 -10 -9 -9 -9 -9 -6 -5 -5 -5 --------- Run | Yrd Mat Mat Sto Rec Scr Fac Fac Upp Upp Machines Accessed 27 | . 1 . 6 14 6 . . . . Terminals 12 | . 1 . 5 6 . . . . . Fabricators . | . . . . . . . . . . Repair Stations . | . . . . . . . . . . Recycling Units 8 | . . . . 8 . . . . . Scanalyzers . | . . . . . . . . . . Garrison Access 1 | . . . 1 . . . . . . Total Hacks 99 | . 4 . 12 32 51 . . . . Successful 74 | . 3 . 6 14 51 . . . . Failed 25 | . 1 . 6 18 . . . . . Catastrophic . | . . . . . . . . . . Database Lockouts . | . . . . . . . . . . Manual 34 | . . . 2 32 . . . . . Terminals 37 | . 4 . 11 22 . . . . . Fabricators . | . . . . . . . . . . Repair Stations . | . . . . . . . . . . Recycling Units 10 | . . . . 10 . . . . . Scanalyzers . | . . . . . . . . . . Garrison Access 1 | . . . 1 . . . . . . Terminal Hacks 59 | . 3 . 5 . 51 . . . . Record 51 | . . . . . 51 . . . . Open Door 2 | . . . 2 . . . . . . Branch Access Points 1 | . . . 1 . . . . . . Locate Traps 2 | . 1 . 1 . . . . . . Transport Status 1 | . 1 . . . . . . . . Registered Components 1 | . 1 . . . . . . . . Zone Layout 1 | . . . 1 . . . . . . Fabricator Hacks . | . . . . . . . . . . Repair Station Hacks . | . . . . . . . . . . Recycling Unit Hacks . | . . . . . . . . . . Scanalyzer . | . . . . . . . . . . Garrison Access Hacks 1 | . . . 1 . . . . . . Seal Access 1 | . . . 1 . . . . . . Unauthorized Hacks 14 | . . . . 14 . . . . . Terminals 6 | . . . . 6 . . . . . Botnet 1 | . . . . 1 . . . . . Skim 5 | . . . . 5 . . . . . Fabricators . | . . . . . . . . . . Repair Stations . | . . . . . . . . . . Recycling Units 8 | . . . . 8 . . . . . Tunnel 8 | . . . . 8 . . . . . Scanalyzers . | . . . . . . . . . . Garrison Access . | . . . . . . . . . . Data Cores Recovered . | . . . . . . . . . . Used . | . . . . . . . . . . Hacking Detections 11 | . 1 . 3 7 . . . . . Full Trace Events 3 | . . . 2 1 . . . . . Feedback Events . | . . . . . . . . . . Feedback Blocked . | . . . . . . . . . . Robot Schematics Acquired . | . . . . . . . . . . Robots Built . | . . . . . . . . . . Authchips . | . . . . . . . . . . Time . | . . . . . . . . . . Total Robot Build Rating . | . . . . . . . . . . Part Schematics Acquired . | . . . . . . . . . . Parts Built . | . . . . . . . . . . Authchips . | . . . . . . . . . . Time . | . . . . . . . . . . Total Part Build Rating . | . . . . . . . . . . Parts Repaired . | . . . . . . . . . . Time . | . . . . . . . . . . Parts Recycled . | . . . . . . . . . . Recycled Matter . | . . . . . . . . . . Retrieved Matter . | . . . . . . . . . . Retrieved Components . | . . . . . . . . . . Parts Scanalyzed . | . . . . . . . . . . Part Schematics Acquired . | . . . . . . . . . . Parts Damaged . | . . . . . . . . . . Bothacking | -11 -10 -9 -9 -9 -9 -6 -5 -5 -5 ------------ Run | Yrd Mat Mat Sto Rec Scr Fac Fac Upp Upp Used RIF Installer . | . . . . . . . . . . Robots Hacked . | . . . . . . . . . . Non-combat . | . . . . . . . . . . Combat . | . . . . . . . . . . Robot Hacks Applied . | . . . . . . . . . . Relay Couplers Released . | . . . . . . . . . . Fabnet Peak Effective % . | . . . . . . . . . . Robots Rewired 1 | . . . 1 . . . . . . Allies Hacked . | . . . . . . . . . . Hacks Repelled . | . . . . . . . . . . Allies | -11 -10 -9 -9 -9 -9 -6 -5 -5 -5 -------- Run | Yrd Mat Mat Sto Rec Scr Fac Fac Upp Upp Total Allies 10 | . . . 10 . . . . . . Largest Group 10 | . . . 10 . . . . . . Highest-Rated Group 88 | . . . 88 . . . . . . Highest-Rated Ally 16 | . . . 16 . . . . . . Total Orders . | . . . . . . . . . . Ally Attacks 25 | . . . 25 . . . . . . Total Damage 164 | . . . 164 . . . . . . Kills 3 | . . . 3 . . . . . . Allies Corrupted . | . . . . . . . . . . Allies Melted . | . . . . . . . . . . Intel | -11 -10 -9 -9 -9 -9 -6 -5 -5 -5 ------- Run | Yrd Mat Mat Sto Rec Scr Fac Fac Upp Upp Robot Analysis Total . | . . . . . . . . . . Derelict Logs Recovered 2 | . . . . . . . . 1 1 Drone Launches . | . . . . . . . . . . Drone Recoveries . | . . . . . . . . . . Exploration | -11 -10 -9 -9 -9 -9 -6 -5 -5 -5 ------------- Run | Yrd Mat Mat Sto Rec Scr Fac Fac Upp Upp Turns Passed 2287 | 9 31 35 139 663 1020 44 109 106 131 Spaces Moved 3798 | 19 61 70 265 567 2040 87 215 212 262 Core 3798 | 19 61 70 265 567 2040 87 215 212 262 Treads . | . . . . . . . . . . Legs . | . . . . . . . . . . Wheels . | . . . . . . . . . . Hover . | . . . . . . . . . . Flight . | . . . . . . . . . . Fastest Speed 50 | 50 50 50 50 50 50 50 50 50 50 Average Speed 50 | 50 50 50 50 50 50 50 50 50 50 Slowest Speed 50 | 50 50 50 50 50 50 50 50 50 50 Overloaded Moves . | . . . . . . . . . . Propulsion Burnouts . | . . . . . . . . . . Robots Hopped . | . . . . . . . . . . Cave-ins Triggered . | . . . . . . . . . . Exploration Rate (%) 39 | 3 18 11 47 92 93 3 9 49 71 Regions Visited 9 Branch Regions 5 Pre-discovered Areas 15 | . . . . 10 5 . . . . Known Exits Taken 4 | . . . 1 . . 1 1 1 . Unknown Exits Taken 5 | 1 1 1 . 1 1 . . . . Scrap Searched 4 | . . . . . . . . 1 3 Spaces Dug . | . . . . . . . . . . Terrain Destroyed . | . . . . . . . . . . Melee . | . . . . . . . . . . Projectile . | . . . . . . . . . . AOE . | . . . . . . . . . . Terrain Rammed . | . . . . . . . . . . Walls Destroyed . | . . . . . . . . . . Machines Disabled . | . . . . . . . . . . Actions | -11 -10 -9 -9 -9 -9 -6 -5 -5 -5 --------- Run | Yrd Mat Mat Sto Rec Scr Fac Fac Upp Upp Total 4176 | 18 60 69 270 945 2039 86 216 211 262 Wait 379 | . . . . 379 . . . . . Move 3790 | 18 60 69 264 566 2039 86 215 211 262 Hop . | . . . . . . . . . . Pick Up . | . . . . . . . . . . Fast Attach . | . . . . . . . . . . Attach . | . . . . . . . . . . Detach . | . . . . . . . . . . Swap . | . . . . . . . . . . Drop . | . . . . . . . . . . Fire . | . . . . . . . . . . Melee . | . . . . . . . . . . Ram 3 | . . . 2 . . . 1 . . Kick . | . . . . . . . . . . Crush . | . . . . . . . . . . Escape Stasis . | . . . . . . . . . . Rewire 4 | . . . 4 . . . . . . Trap . | . . . . . . . . . . Miscellaneous . | . . . . . . . . . . Route ------- -11/Scrapyard -10/Materials (discovered 2 exits: [*Mat] / [*Min]) -9/Materials -9/Storage -9/Recycling (discovered 2 exits: [*Fac] / *Scr) -9/Scraptown (discovered 2 exits: [*Fac x2]) -6/Factory (discovered 5 exits: *Fac x3 / Low x2) -5/Factory -5/Upper Caves -5/Upper Caves (discovered 1 exit: [*Zhi]) History --------- Turn | Location | Event 3 | -11/Scrapyard | Discovered new exit (range 15) 10 | -11/Scrapyard | Entered Materials 17 | -10/Materials | Discovered new exit (range 15) 35 | -10/Materials | Discovered new exit (range 11) 41 | -10/Materials | Entered another Materials area 41 | -9/Materials | Evolved 2 slots: Weapon x2 74 | -9/Materials | Discovered new exit (range 4) 76 | -9/Materials | Entered Storage 85 | -9/Storage | Assisted by bots powering up and referring to "LRC-V3" 159 | -9/Storage | Identified exit to Recycling 180 | -9/Storage | Core integrity fell below 50% 213 | -9/Storage | Used back door to open Recycling access 215 | -9/Storage | Entered Recycling 373 | -9/Recycling | Discovered new exit (range 11) 451 | -9/Recycling | Learned Storage emergency access door positions 490 | -9/Recycling | Scanned before Scraplab entrance 497 | -9/Recycling | Entered Scraplab 502 | -9/Recycling | Discovered new exit (range 3) 514 | -9/Recycling | Build established: Mutant 616 | -9/Recycling | Learned location of Storage (-9) 652 | -9/Recycling | Learned location of 1 exit from Storage 677 | -9/Recycling | Learned 2 Materials zone layouts 715 | -9/Recycling | Learned Materials garrison access intel 750 | -9/Recycling | Learned 2 Storage zone layouts 850 | -9/Recycling | Learned Materials trap positions 878 | -9/Recycling | Entered Scraptown 930 | -9/Scraptown | Visited UFD Registry 938 | -9/Scraptown | Visited Awakened 954 | -9/Scraptown | Visited Shadow of the Wyrm 971 | -9/Scraptown | Visited Cave Peace 992 | -9/Scraptown | Visited TADAMA 1006 | -9/Scraptown | Visited Artisan Demo Area 1042 | -9/Scraptown | Visited Cyclists 1054 | -9/Scraptown | Visited Fellowship of the Rings 1087 | -9/Scraptown | Registered with UFD as "Wirecase" 1102 | -9/Scraptown | Entered Cyclist Reading Room 1305 | -9/Scraptown | Discovered new exit (range 11) 1377 | -9/Scraptown | Visited Scrap Suit Storage 1384 | -9/Scraptown | Visited Observation Area 1395 | -9/Scraptown | Visited Science Testing Area 1473 | -9/Scraptown | Visited Junk Repository 1487 | -9/Scraptown | Visited Research Penetration Think Tank 1518 | -9/Scraptown | Visited DA-N13 Charitable Foundation 1523 | -9/Scraptown | Visited Botcube Research 1532 | -9/Scraptown | Visited A0-MCA Data Center 1535 | -9/Scraptown | Given a B rating by A0-MCA 1546 | -9/Scraptown | Visited Scrapoid Pod Storage 1555 | -9/Scraptown | Visited Cartography Club 1756 | -9/Scraptown | Learned location of Cetus (-4) 1756 | -9/Scraptown | Learned 12 Materials zone layouts 1756 | -9/Scraptown | Learned 8 Factory zone layouts 1756 | -9/Scraptown | Learned 12 Research zone layouts 1756 | -9/Scraptown | Learned 4 Access zone layouts 1756 | -9/Scraptown | Learned 4 Mines zone layouts 1756 | -9/Scraptown | Learned 16 Lower Caves zone layouts 1756 | -9/Scraptown | Learned 16 Upper Caves zone layouts 1756 | -9/Scraptown | Learned 20 Upper Caves zone layouts 1756 | -9/Scraptown | Learned 4 Hub_04(d) zone layouts 1756 | -9/Scraptown | Learned Research emergency access door positions 1756 | -9/Scraptown | Learned location of 3 exits from Factory 1756 | -9/Scraptown | Learned location of 1 exit from Upper Caves 1896 | -9/Scraptown | Discovered new exit (range 3) 1898 | -9/Scraptown | Entered Factory 1898 | -6/Factory | Evolved 6 slots: Weapon x6 1899 | -6/Factory | Identified exit to Lower Caves 1900 | -6/Factory | Identified exit to Factory 1942 | -6/Factory | Entered another Factory area 1942 | -5/Factory | Evolved 2 slots: Weapon x2 1943 | -5/Factory | Identified exit to Upper Caves 2051 | -5/Factory | Entered Upper Caves 2052 | -5/Upper Caves | Identified exit to Upper Caves 2130 | -5/Upper Caves | Learned Factory terminal intel 2157 | -5/Upper Caves | Entered another Upper Caves area 2158 | -5/Upper Caves | Discovered new exit (range 114) 2160 | -5/Upper Caves | Attracted the attention of an 0b10 checkpoint 2229 | -5/Upper Caves | Learned Factory machine intel 2262 | -5/Upper Caves | Spotted B-75 Beast 2264 | -5/Upper Caves | Core integrity fell below 50% 2273 | -5/Upper Caves | Core integrity fell below 20% 2288 | -5/Upper Caves | Destroyed by G-67 Veteran with Plasma Rifle Last Messages --------------- 02163_ Penetrated by Slug. 02164_ Searching scrap... 02164_ Found Field Propulsion Drive. 02164_ Found Mass Driver. 02164_ Found 49 Matter. 02166_ Slug penetrates Wall. 02168_ Penetrated by Slug. 02170_ Searching scrap... 02170_ Found Field Propulsion Drive. 02170_ Found Thermal Shield. 02170_ Found Mak. Shrapnel Gun. 02170_ Found 58 Matter. 02196_ H0-03U(k) breaks down the debris. 02216_ Searching scrap... 02216_ Found Imp. Sensor Array. 02216_ Found Mak. Terrain Scan Processor. 02216_ Found Mass Driver. 02216_ Found 31 Matter. 02229_ Acquired derelict log, extracted data. Data stored: Factory machine intel. Map ----- +----------------------------------------------------+ | ?????????????????????????????????????????????? | | ?????????????????????????????####????????????? | | ??????????????????####????#### ##????????#### | | ?????????????????## ##???# ##??????## # | | ?????????????????# ##??# #??????# | | ????????????????## ##?# ##??????# | | ???????????????## #?### ##?????## # | | ??????????????## ##### #?????# # | | ??????????????# ###????## # | | ??????????????????# ##?????## | | ??????????????????# ## ### #??????# | | ??????????????????#gg## #?## #??????# | | ??????????????????# g## #??# #?????## | | ????????????????###g ## #### ##????# | | ????????????????# ## ## ###??# | | ????????????????# ## # ##?## ### | | ????????????????# ## ### ########## | | ????????????????# ## ### ### #?# | | ???????????????## #?# #?# | | ???????????????# #### ### | | ???????????????# ### ## | | ??????????????## ### | | ??????????????# ### | | ??????????????# #### | | ??????????????# #?## ## | | ??????????????## @ #??## ### ## | | ???????????????# #???# ### #### | | ???????????????## ##??## #?###??? | | ??????????????#### ## ###### #????### | | ??????????????# ## ### #?#### ##????# # | | ??????????###?# #### < #????###????## | | ?????????## #### #### ##??????????## | | ?????????# # #### #??????????## | | ?????????# # # #### ###???????## | | ?????????# ### ##?????## ## | | ?????????# ## #?????# ### | | ?????????####### ####### ##????# ## | | ???????????????#### ????????# ????????????## | | ???????????????????##???????????????????????#? | | ?????????????????????????????????????????????? | | ?????????????????????????????????????????????? | | ?????????????????????????????????????????????? | | ?????????????????????????????????????????????? | | ?????????????????????????????????????????????? | | ?????????????????????????????????????????????? | | ?????????????????????????????????????????????? | | ?????????????????????????????????????????????? | | ?????????????????????????????????????????????? | | ?????????????????????????????????????????????? | | ?????????????????????????????????????????????? | +----------------------------------------------------+ Best States ------------- Heat Dissipation 40 Energy Generation 5 Energy Capacity 100 Matter Stores 258 Matter Capacity 300 Sight Range 16 Terrain Scan Density 10 Evasion (%) 50 Item Schematics ----------------- None Robot Schematics ------------------ None Fabricated ------------ Nothing Alien Tech Used ----------------- None Achievements -------------- None Challenges ------------ None Game ------ Seed ThermalFlightNanosword Manual? 0 Play Time 00:34:34 Cumulative 150.9 hours Start 2024.11.27 @ 13:34:55 End 2024.11.27 @ 14:13:03 Sessions 1 Manual Loads 0 Difficulty Rogue Special Mode None Game No. 162 Rogue 162 Adventurer 0 Explorer 0 Win Type - Total 3 Types 3/0/0/0/0/0/0/0/0 Lore% 62 Gallery% 58 Achievement% 55 Wizard Run 0 Options --------- Layout 1 ASCII 0 Keyboard 1 Movement Arrows Keybinds 0 Fullscreen 0 Font 20/Smallcaps Map View 50x35 Zoom Use 0% Tactical HUD 1 Map Filters NONE Filters NONE Steam 1 RUN: f2f3884b-ce20-4a74-a799-cfa96d8cde6a